lending/lending_fUSD_20240111
["ID","MTS","AMOUNT","RATE_DAILY","PERIOD"]
[311274479,1705009843113,-578.17753394,0.000419,60]
[311274483,1705009843122,-6550.586423,0.00041921,2]
[311274488,1705009843141,-500.0,0.00041924,14]
[311274491,1705009843154,-1479.51,0.00041958,60]
[311274494,1705009843163,-151.0,0.00041958,14]
[311274496,1705009843173,-151.0,0.00041958,14]
[311274498,1705009843182,-151.0,0.00041958,14]
[311274500,1705009843192,-151.0,0.00041967,14]
[311274502,1705009843201,-510.044864,0.00041967,14]
[311274504,1705009843210,-510.044864,0.00041967,14]
[311274506,1705009843220,-151.0,0.00041967,14]
[311274508,1705009843229,-151.0,0.00041967,14]
[311274510,1705009843238,-419.029269,0.00041967,14]
[311274513,1705009843248,-419.029269,0.00041967,14]
[311274515,1705009843257,-202.0,0.00041976,27]
[311274517,1705009843269,-200.0,0.00041987,33]
[311274519,1705009843278,-500.0,0.00041987,31]
[311274520,1705009843287,-396.99063185,0.00041988,7]
[311274523,1705009843298,-1268.96259597,0.0004199,2]
[311274525,1705009843307,-834.0,0.00041994,2]
[311274527,1705009843316,-944.0,0.00041994,2]
[311274529,1705009843325,-1851.0,0.00041994,2]
[311274531,1705009843335,-1234.0,0.00041994,2]
[311274532,1705009843344,-868.944,0.00041994,2]
[311274535,1705009843353,-804.855,0.00041994,2]
[311274536,1705009843362,-1930.0,0.00041994,2]
[311274539,1705009843372,-1139.0,0.00041994,2]
[311274541,1705009843381,-318.0,0.00041994,2]
[311274543,1705009843390,-507.0,0.00041994,2]
[311274545,1705009843399,-880.0,0.00041994,2]
[311274547,1705009843408,-4464.464,0.00041994,2]
[311274549,1705009843417,-2269.0,0.00041994,2]
[311274551,1705009843426,-2900.0,0.00041994,2]
[311274553,1705009843435,-2338.582,0.00041994,2]
[311274555,1705009843444,-19673.0,0.00041994,2]
[311274557,1705009843453,-150.0,0.00041994,2]
[311274559,1705009843463,-150.0,0.00041994,2]
[311274561,1705009843472,-1028.0,0.00041994,2]
[311274563,1705009843481,-777.40112,0.00041998,10]
[311274565,1705009843490,-100000.0,0.00042,12]
[311274567,1705009843500,-151.0,0.00042,14]
[311274569,1705009843510,-239.890611,0.00042,14]
[311274571,1705009843520,-239.890611,0.00042,14]
[311274573,1705009843530,-1000.0,0.00042,12]
[311274575,1705009843539,-1000.0,0.00042,12]
[311274577,1705009843548,-1589.58652979,0.00042,40]
[311274579,1705009843558,-42217.49,0.00042,14]
[311274581,1705009843567,-1000.0,0.00042,120]
[311274583,1705009843576,-5675.05474557,0.00042,2]
[311274585,1705009843586,-3000.0,0.00042,90]
[311274587,1705009843595,-2551.0,0.00042,90]
[311274589,1705009843606,-5800.0,0.00042,2]
[311274591,1705009843615,-300.0,0.00042,43]
[311274593,1705009843625,-5800.0,0.00042,2]
[311274595,1705009843634,-200.0,0.00042,2]
[311274597,1705009843643,-150.0,0.00042019,2]
[311274599,1705009843653,-150.0,0.00042019,2]
[311274601,1705009843663,-701.3878724,0.00042086,4]
[311274603,1705009843672,-555.40112,0.00042098,8]
[311274605,1705009843681,-1000.0,0.000421,2]
[311274607,1705009843691,-2000.0,0.000421,2]
[311274609,1705009843700,-1288.53657583,0.000421,2]
[311274611,1705009843709,-170.09,0.00042126,2]
[311274613,1705009843718,-150.0,0.00042169,2]
[311274616,1705009843728,-150.0,0.00042169,2]
[311274618,1705009843737,-150.0,0.00042177,2]
[311274620,1705009843746,-155.6998557,0.00042181,30]
[311274622,1705009843755,-400.0,0.00042192,120]
[311274624,1705009843766,-350.0,0.00042192,120]
[311274626,1705009843776,-777.40112,0.00042198,10]
[311274628,1705009843784,-389.58,0.00042205,2]
[311274630,1705009843794,-1479.51,0.00042223,60]
[311274632,1705009843804,-555.40112,0.00042298,8]
[311274634,1705009843813,-2105.04764552,0.000423,3]
[311274636,1705009843822,-14303.65,0.000423,7]
[311274638,1705009843832,-6581.9,0.000423,7]
[311274640,1705009843841,-168.255559,0.00042304,30]
[311274642,1705009843850,-170.779749,0.00042304,30]
[311274644,1705009843859,-1177.107307,0.00042304,30]
[311274646,1705009843868,-1582.465425,0.00042304,30]
[311274648,1705009843877,-342.230444,0.00042304,30]
[311274650,1705009843886,-2483.89328,0.00042304,30]
[311274652,1705009843895,-402.995543,0.00042304,30]
[311274654,1705009843904,-171.397115,0.00042304,30]
[311274656,1705009843914,-464.469855,0.00042304,30]
[311274658,1705009843923,-154.100341,0.00042304,30]
[311274660,1705009843932,-181.530769,0.00042304,30]
[311274662,1705009843941,-500.0,0.00042317,14]
[311274664,1705009843951,-6550.586423,0.00042334,2]
[311274666,1705009843961,-604.0,0.00042337,7]
[311274668,1705009843970,-777.40112,0.00042398,10]
[311274670,1705009843980,-3500.23,0.000424,7]
[311274672,1705009843989,-151.0,0.00042466,2]
[311274674,1705009843998,-500.0,0.00042466,2]
[311274676,1705009844008,-555.40112,0.00042498,8]
[311274678,1705009844018,-152.0,0.00042516,4]
[311274680,1705009844027,-1178.31839914,0.00042532,5]
[311274682,1705009844037,-777.40112,0.00042598,10]
[311274684,1705009844046,-215.0,0.0004264,2]
[311274686,1705009844055,-3703.55500812,0.00042673,17]
[311274688,1705009844065,-2000.0,0.00042675,2]
[311274690,1705009844074,-2000.0,0.00042675,2]
[311274692,1705009844083,-2000.0,0.00042675,2]
[311274694,1705009844092,-202.0,0.00042697,28]
[311274696,1705009844102,-555.40112,0.00042698,8]
[311274698,1705009844111,-150.0,0.00042699,4]
[311274700,1705009844120,-150.0,0.00042699,4]
[311274702,1705009844130,-742.59,0.000427,4]
[311274704,1705009844140,-742.59,0.000427,4]
[311274706,1705009844149,-742.59,0.000427,4]
[311274708,1705009844158,-742.59,0.000427,4]
[311274731,1705009844354,-742.59,0.000427,4]
[311274733,1705009844363,-742.59,0.000427,4]
[311274735,1705009844373,-742.59,0.000427,4]
[311274737,1705009844382,-742.59,0.000427,4]
[311274739,1705009844391,-742.59,0.000427,4]
[311274741,1705009844400,-742.59,0.000427,4]
[311274743,1705009844409,-742.59,0.000427,4]
[311274745,1705009844418,-742.59,0.000427,4]
[311274747,1705009844428,-742.59,0.000427,4]
[311274749,1705009844437,-742.59,0.000427,4]
[311274751,1705009844446,-742.59,0.000427,4]
[311274753,1705009844455,-742.59,0.000427,4]
[311274755,1705009844465,-742.59,0.000427,4]
[311274757,1705009844474,-742.59,0.000427,4]
[311274759,1705009844483,-742.59,0.000427,4]
[311274761,1705009844493,-742.59,0.000427,4]
[311274763,1705009844501,-150.0,0.000427,18]
[311274765,1705009844510,-1267.4543112,0.000427,7]
[311274767,1705009844520,-500.0,0.00042711,14]
[311274769,1705009844529,-6550.586423,0.00042747,2]
[311274771,1705009844538,-256.74226348,0.00042755,15]
[311274773,1705009844547,-1000.0,0.00042788,15]
[311274775,1705009844557,-616.11619952,0.00042788,3]
[311274777,1705009844567,-1000.0,0.00042788,15]
[311274779,1705009844576,-1000.0,0.00042788,15]
[311274781,1705009844585,-4359.96606084,0.00042788,5]
[311274783,1705009844595,-1000.0,0.00042788,15]
[311274785,1705009844604,-2578.81729234,0.00042788,3]
[311274787,1705009844613,-1000.0,0.00042788,15]
[311274789,1705009844624,-1000.0,0.00042788,15]
[311274791,1705009844635,-777.40112,0.00042798,10]
[311274793,1705009844644,-150.0,0.00042799,2]
[311274795,1705009844653,-150.0,0.00042799,2]
[311274797,1705009844662,-150.0,0.00042799,2]
[311274799,1705009844671,-150.0,0.00042799,2]
[311274801,1705009844680,-150.0,0.00042799,2]
[311274803,1705009844688,-150.0,0.00042799,2]
[311274805,1705009844697,-150.0,0.00042799,2]
[311274807,1705009844707,-150.0,0.00042799,2]
[311274809,1705009844717,-150.0,0.00042799,2]
[311274811,1705009844726,-150.0,0.00042799,2]
[311274813,1705009844735,-190.25,0.00042799,2]
[311274815,1705009844744,-507.915024,0.000428,5]
[311274817,1705009844753,-6154.85078183,0.00042803,7]
[311274819,1705009844762,-152.94059647,0.00042821,17]
[311274821,1705009844771,-1177.107307,0.00042833,30]
[311274823,1705009844780,-1582.465425,0.00042833,30]
[311274825,1705009844789,-342.230444,0.00042833,30]
[311274827,1705009844800,-2483.89328,0.00042833,30]
[311274829,1705009844809,-402.995543,0.00042833,30]
[311274831,1705009844817,-171.397115,0.00042833,30]
[311274833,1705009844826,-464.469855,0.00042833,30]
[311274835,1705009844836,-500.0,0.00042836,5]
[311274837,1705009844845,-1000.0,0.00042861,15]
[311274839,1705009844854,-400.0,0.0004287,3]
[311274841,1705009844863,-1000.0,0.00042877,15]
[311274843,1705009844872,-150.0,0.0004289,60]
[311274845,1705009844881,-91478.21920835,0.00042891,7]
[311274887,1705009845337,-729.03,0.00028604,2]
[311274889,1705009845346,-650.81684476,0.00037287,4]
[311274891,1705009845355,-1000.0,0.000375,2]
[311274893,1705009845364,-229.64,0.000377,2]
[311274895,1705009845373,-200.0,0.00038994,2]
[311274897,1705009845382,-150.0,0.00041994,2]
[311274899,1705009845391,-150.0,0.00041994,2]
[311274900,1705009845400,-33020.24831745,0.00042891,7]
[311274908,1705009845462,-270.43975547,0.00037287,2]
[311274910,1705009845471,-2404.76975229,0.00042891,7]
[311274920,1705009845551,-282.09946647,0.00037287,4]
[311274922,1705009845561,-295.08684247,0.00037287,4]
[311274924,1705009845570,-25181.22155303,0.0003729,4]
[311274926,1705009845579,-23894.79624591,0.00042891,7]
[311274928,1705009845588,-555.40112,0.00042898,8]
[311274930,1705009845597,-14303.65,0.000429,7]
[311274932,1705009845606,-6581.9,0.000429,7]
[311274934,1705009845615,-564.28725259,0.00042908,3]
[311274936,1705009845624,-668.78379368,0.0004291,3]
[311274938,1705009845633,-219.84327185,0.00042932,3]
[311274940,1705009845642,-6034.0545821,0.00042945,7]
[311274942,1705009845651,-155.6998557,0.00042963,30]
[311274944,1705009845661,-200.0,0.00042987,35]
[311274946,1705009845670,-500.0,0.00042987,32]
[311274948,1705009845679,-777.40112,0.00042998,10]
[311274950,1705009845689,-2158.59137091,0.00042999,14]
[311274952,1705009845697,-100000.0,0.00043,13]
[311274954,1705009845707,-300.0,0.00043,5]
[311274956,1705009845716,-300.0,0.00043,5]
[311274958,1705009845725,-87510.78374669,0.00043,4]
[311274960,1705009845733,-40262.20725767,0.00043,2]
[311274962,1705009845755,-1000.0,0.00043,13]
[311274963,1705009845778,-1000.0,0.00043,13]
[311274966,1705009845789,-11559.45,0.00043,3]
[311274968,1705009845799,-8901.48,0.00043,3]
[311274970,1705009845809,-248759.44958289,0.00043,4]
[311274972,1705009845818,-998.34204093,0.00043,7]
[311274973,1705009845831,-151.0,0.00043,14]
[311274976,1705009845842,-151.0,0.00043,14]
[311274978,1705009845853,-282.0,0.00043,14]
[311274980,1705009845863,-3500.23,0.00043,7]
[311274981,1705009845872,-1000.0,0.00043,3]
[311274984,1705009845882,-151.0,0.00043,14]
[311274986,1705009845891,-300.0,0.00043,44]
[311274988,1705009845902,-151.0,0.00043,14]
[311274990,1705009845911,-5509.25,0.00043,4]
[311274992,1705009845919,-1000.0,0.00043,7]
[311274994,1705009845928,-2000.0,0.00043,2]
[311274996,1705009845937,-83113.2996897,0.00043,30]
[311274998,1705009845946,-151.0,0.00043,14]
[311275000,1705009845956,-151.0,0.00043,14]
[311275002,1705009845965,-500.0,0.00043,2]
[311275004,1705009845974,-943.0,0.00043,2]
[311275006,1705009845983,-151.0,0.00043,7]
[311275008,1705009845993,-1000.0,0.00043007,15]
[311275010,1705009846002,-8151.62369526,0.00043009,7]
[311275012,1705009846012,-166.99392,0.00043049,4]
[311275014,1705009846022,-10000.0,0.00043086,5]
[311275016,1705009846032,-555.40112,0.00043098,8]
[311275018,1705009846041,-1000.0,0.000431,2]
[311275020,1705009846050,-2000.0,0.000431,2]
[311275022,1705009846058,-500.0,0.00043105,14]
[311275024,1705009846067,-155.6998557,0.00043127,30]
[311275026,1705009846076,-6550.586423,0.00043159,2]
[311275028,1705009846085,-2000.0,0.0004318,36]
[311275030,1705009846095,-777.40112,0.00043198,10]
[311275032,1705009846104,-7900.88574197,0.00043253,14]
[311275034,1705009846114,-150.0,0.00043259,2]
[311275036,1705009846123,-400.0,0.00043288,120]
[311275038,1705009846132,-350.0,0.00043288,120]
[311275040,1705009846141,-555.40112,0.00043298,8]
[311275042,1705009846150,-179.86239051,0.000433,30]
[311275044,1705009846159,-531.0,0.000433,2]
[311275046,1705009846168,-50000.0,0.0004333,15]
[311275048,1705009846177,-1177.107307,0.00043362,30]
[311275050,1705009846186,-1582.465425,0.00043362,30]
[311275052,1705009846195,-342.230444,0.00043362,30]
[311275055,1705009846204,-2483.89328,0.00043362,30]
[311275058,1705009846213,-402.995543,0.00043362,30]
[311275061,1705009846222,-171.397115,0.00043362,30]
[311275064,1705009846231,-170.779749,0.00043362,30]
[311275067,1705009846240,-464.469855,0.00043362,30]
[311275070,1705009846250,-160.04902526,0.00043374,30]
[311275073,1705009846259,-293.84,0.00043381,2]
[311275075,1705009846269,-300.0,0.00043381,2]
[311275077,1705009846278,-293.84,0.00043381,2]
[311275079,1705009846287,-293.84,0.00043381,2]
[311275081,1705009846295,-293.84,0.00043381,2]
[311275083,1705009846305,-518.28,0.00043381,2]
[311275085,1705009846314,-293.84,0.00043381,2]
[311275087,1705009846324,-293.84,0.00043381,2]
[311275089,1705009846333,-293.84,0.00043381,2]
[311275091,1705009846342,-293.84,0.00043381,2]
[311275093,1705009846351,-70984.30615678,0.00043397,2]
[311275095,1705009846360,-777.40112,0.00043398,10]
[311275097,1705009846369,-1208.0,0.00043409,30]
[311275099,1705009846378,-202.0,0.00043418,29]
[311275101,1705009846387,-555.40112,0.00043498,8]
[311275103,1705009846396,-500.0,0.00043498,14]
[311275105,1705009846405,-25800.0,0.000435,45]
[311275107,1705009846414,-500.0,0.00043536,4]
[311275109,1705009846423,-3703.55500812,0.00043536,18]
[311275111,1705009846432,-151.0,0.00043542,14]
[311275113,1705009846441,-151.0,0.00043542,14]
[311275115,1705009846449,-151.0,0.00043542,14]
[311275117,1705009846461,-151.0,0.00043542,14]
[311275119,1705009846469,-510.044864,0.00043542,14]
[311275121,1705009846479,-510.044864,0.00043542,14]
[311275123,1705009846489,-151.0,0.00043542,14]
[311275125,1705009846498,-184.100401,0.00043542,14]
[311275127,1705009846507,-419.029269,0.00043542,14]
[311275129,1705009846517,-419.029269,0.00043542,14]
[311275131,1705009846526,-338.549714,0.00043542,14]
[311275133,1705009846535,-338.549714,0.00043542,14]
[311275135,1705009846545,-151.0,0.00043542,14]
[311275137,1705009846554,-842.484779,0.00043542,14]
[311275139,1705009846563,-842.484779,0.00043542,14]
[311275141,1705009846572,-151.0,0.00043542,14]
[311275143,1705009846582,-151.0,0.00043542,14]
[311275145,1705009846591,-151.0,0.00043542,14]
[311275148,1705009846601,-50000.0,0.00043542,30]
[311275149,1705009846610,-500.0,0.00043544,4]
[311275151,1705009846619,-6839.50522379,0.0004356,2]
[311275154,1705009846631,-2845.74773785,0.0004356,2]
[311275155,1705009846640,-4899.52684213,0.0004356,2]
[311275157,1705009846649,-9664.80870378,0.0004356,2]
[311275160,1705009846659,-6550.586423,0.00043572,2]
[311275162,1705009846668,-157.49782165,0.00043579,30]
[311275163,1705009846677,-195.0,0.00043582,2]
[311275165,1705009846687,-155.6998557,0.00043588,30]
[311275167,1705009846696,-777.40112,0.00043598,10]
[311275170,1705009846706,-453.2723318,0.00043599,7]
[311275171,1705009846716,-3500.23,0.000436,7]
[311275174,1705009846725,-150.39118241,0.00043614,30]
[311275175,1705009846734,-155.6998557,0.00043648,30]
[311275178,1705009846744,-389.58,0.00043677,2]
[311275180,1705009846753,-555.40112,0.00043698,8]
[311275182,1705009846762,-215.0,0.000437,2]
[311275184,1705009846773,-150.0,0.000437,19]
[311275186,1705009846782,-1267.4543112,0.000437,8]
[311275188,1705009846792,-400.0,0.0004377,3]
[311275190,1705009846801,-777.40112,0.00043798,10]
[311275192,1705009846810,-353.90180712,0.000438,14]
[311275194,1705009846819,-3683.732079,0.000438,19]
[311275196,1705009846829,-325.895385,0.000438,7]
[311275198,1705009846838,-3000.0,0.000438,36]
[311275200,1705009846846,-3000.0,0.000438,15]
[311275202,1705009846855,-300.0,0.000438,19]
[311275204,1705009846865,-150.0,0.000438,47]
[311275206,1705009846874,-869.3316,0.000438,2]
[311275208,1705009846883,-3000.0,0.0004381,36]
[311275210,1705009846892,-152.94059647,0.00043812,21]
[311275212,1705009846901,-3000.0,0.0004382,37]
[311275214,1705009846910,-3000.0,0.0004383,37]
[311275230,1705009846919,-353.0,0.00043835,30]
[311275232,1705009847065,-1160.91023887,0.00043835,30]
[311275235,1705009847075,-550.0,0.00043835,7]
[311275237,1705009847084,-3000.0,0.00043835,120]
[311275238,1705009847094,-250.0,0.00043835,10]
[311275240,1705009847103,-187.5,0.00043835,120]
[311275243,1705009847112,-5044.508514,0.0004384,37]
[311275245,1705009847122,-10721.09,0.0004384,30]
[311275247,1705009847131,-3000.0,0.0004386,20]
[311275249,1705009847141,-150.0,0.0004389,60]
[311275250,1705009847150,-1177.107307,0.0004389,30]
[311275253,1705009847159,-1582.465425,0.0004389,30]
[311275255,1705009847169,-342.230444,0.0004389,30]
[311275257,1705009847178,-2483.89328,0.0004389,30]
[311275259,1705009847187,-402.995543,0.0004389,30]
[311275260,1705009847196,-171.397115,0.0004389,30]
[311275263,1705009847206,-464.469855,0.0004389,30]
[311275264,1705009847216,-500.0,0.00043892,14]
[311275266,1705009847225,-555.40112,0.00043898,8]
[311275268,1705009847235,-150.0,0.00043899,4]
[311275270,1705009847244,-150.0,0.00043899,4]
[311275273,1705009847253,-155.0,0.000439,2]
[311275274,1705009847262,-6581.89,0.000439,7]
[311275275,1705009847273,-151.0,0.000439,14]
[311275276,1705009847282,-239.890611,0.000439,14]
[311275277,1705009847291,-239.890611,0.000439,14]
[311275278,1705009847300,-1000.0,0.0004392,4]
[311275279,1705009847309,-167.55570048,0.0004395,120]
[311275280,1705009847319,-901.59948558,0.00043972,120]
[311275281,1705009847328,-500.0,0.00043972,10]
[311275282,1705009847338,-6550.586423,0.00043985,2]
[311275284,1705009847347,-500.0,0.00043987,37]
[311275286,1705009847357,-200.0,0.00043987,37]
[311275288,1705009847366,-777.40112,0.00043998,10]
[311275290,1705009847375,-100000.0,0.00044,14]
[311275292,1705009847384,-271.82943818,0.00044,2]
[311275294,1705009847393,-8163.28597647,0.00044,120]
[311275296,1705009847403,-67966.41,0.00044,30]
[311275298,1705009847412,-300.0,0.00044,45]
[311275300,1705009847421,-800.0,0.00044,2]
[311275302,1705009847431,-704.82190847,0.00044,14]
[311275304,1705009847441,-4360.04685155,0.00044,5]
[311275306,1705009847451,-600.0,0.00044,5]
[311275308,1705009847460,-426.83929807,0.00044,30]
[311275310,1705009847469,-1000.0,0.00044,14]
[311275312,1705009847479,-5724.0,0.00044,90]
[311275314,1705009847489,-150.0,0.00044,3]
[311275316,1705009847498,-2644.0655974,0.00044,45]
[311275318,1705009847507,-155.6998557,0.00044011,30]
[311275320,1705009847518,-900.0,0.00044064,2]
[311275322,1705009847528,-900.0,0.00044064,2]
[311275324,1705009847537,-900.0,0.00044064,2]
[311275326,1705009847546,-900.0,0.00044064,2]
[311275328,1705009847556,-900.0,0.00044064,2]
[311275330,1705009847565,-900.0,0.00044064,2]
[311275332,1705009847574,-900.0,0.00044064,2]
[311275334,1705009847583,-900.0,0.00044064,2]
[311275336,1705009847592,-900.0,0.00044064,2]
[311275338,1705009847602,-900.0,0.00044064,2]
[311275340,1705009847611,-900.0,0.00044064,2]
[311275342,1705009847621,-900.0,0.00044064,2]
[311275344,1705009847631,-900.0,0.00044064,2]
[311275346,1705009847640,-900.0,0.00044064,2]
[311275348,1705009847649,-900.0,0.00044064,2]
[311275350,1705009847658,-900.0,0.00044064,2]
[311275352,1705009847667,-900.0,0.00044064,2]
[311275354,1705009847676,-900.0,0.00044064,2]
[311275356,1705009847687,-900.0,0.00044064,2]
[311275358,1705009847696,-900.0,0.00044064,2]
[311275360,1705009847705,-900.0,0.00044064,2]
[311275362,1705009847713,-900.0,0.00044064,2]
[311275364,1705009847722,-900.0,0.00044064,2]
[311275366,1705009847731,-900.0,0.00044064,2]
[311275368,1705009847740,-900.0,0.00044064,2]
[311275370,1705009847750,-900.0,0.00044064,2]
[311275372,1705009847759,-900.0,0.00044064,2]
[311275373,1705009847770,-900.0,0.00044064,2]
[311275375,1705009847779,-900.0,0.00044064,2]
[311275378,1705009847789,-900.0,0.00044064,2]
[311275380,1705009847798,-900.0,0.00044064,2]
[311275382,1705009847808,-900.0,0.00044064,2]
[311275384,1705009847817,-900.0,0.00044064,2]
[311275386,1705009847826,-900.0,0.00044064,2]
[311275387,1705009847835,-900.0,0.00044064,2]
[311275390,1705009847845,-900.0,0.00044064,2]
[311275391,1705009847854,-900.0,0.00044064,2]
[311275394,1705009847863,-900.0,0.00044064,2]
[311275395,1705009847872,-900.0,0.00044064,2]
[311275398,1705009847881,-900.0,0.00044064,2]
[311275399,1705009847890,-900.0,0.00044064,2]
[311275401,1705009847899,-900.0,0.00044064,2]
[311275403,1705009847908,-900.0,0.00044064,2]
[311275405,1705009847917,-900.0,0.00044064,2]
[311275407,1705009847927,-900.0,0.00044064,2]
[311275410,1705009847936,-900.0,0.00044064,2]
[311275411,1705009847945,-900.0,0.00044064,2]
[311275413,1705009847954,-900.0,0.00044064,2]
[311275415,1705009847963,-900.0,0.00044064,2]
[311275417,1705009847972,-900.0,0.00044064,2]
[311275420,1705009847981,-900.0,0.00044064,2]
[311275421,1705009847990,-900.0,0.00044064,2]
[311275423,1705009847999,-900.0,0.00044064,2]
[311275424,1705009848008,-900.0,0.00044064,2]
[311275426,1705009848017,-900.0,0.00044064,2]
[311275428,1705009848027,-900.0,0.00044064,2]
[311275430,1705009848036,-900.0,0.00044064,2]
[311275432,1705009848045,-900.0,0.00044064,2]
[311275434,1705009848054,-900.0,0.00044064,2]
[311275436,1705009848063,-900.0,0.00044064,2]
[311275438,1705009848071,-900.0,0.00044064,2]
[311275439,1705009848080,-900.0,0.00044064,2]
[311275441,1705009848089,-900.0,0.00044064,2]
[311275443,1705009848098,-900.0,0.00044064,2]
[311275445,1705009848108,-900.0,0.00044064,2]
[311275447,1705009848117,-900.0,0.00044064,2]
[311275449,1705009848126,-900.0,0.00044064,2]
[311275451,1705009848136,-900.0,0.00044064,2]
[311275453,1705009848145,-900.0,0.00044064,2]
[311275455,1705009848154,-900.0,0.00044064,2]
[311275457,1705009848163,-900.0,0.00044064,2]
[311275459,1705009848172,-900.0,0.00044064,2]
[311275461,1705009848182,-248.0,0.00044064,2]
[311275463,1705009848191,-915.19,0.00044083,2]
[311275465,1705009848200,-989.5,0.00044085,15]
[311275467,1705009848209,-555.40112,0.00044098,8]
[311275469,1705009848219,-16000.0,0.000441,3]
[311275471,1705009848228,-1000.0,0.000441,2]
[311275473,1705009848237,-14303.65,0.000441,7]
[311275475,1705009848246,-2000.0,0.000441,2]
[311275477,1705009848255,-200.0,0.000441,2]
[311275479,1705009848265,-550.0,0.00044109,7]
[311275481,1705009848276,-750.0,0.00044109,10]
[311275483,1705009848285,-1178.31839914,0.00044111,5]
[311275485,1705009848294,-202.0,0.00044139,31]
[311275487,1705009848303,-2000.0,0.0004418,38]
[311275489,1705009848313,-777.40112,0.00044198,10]
[311275491,1705009848323,-700.000001,0.000442,120]
[311275493,1705009848332,-189.82959309,0.000442,19]
[311275495,1705009848341,-6581.89,0.000442,7]
[311275497,1705009848351,-3500.23,0.000442,7]
[311275499,1705009848360,-177.74,0.00044202,2]
[311275501,1705009848369,-835.42,0.00044202,2]
[311275503,1705009848378,-314.07,0.00044202,2]
[311275505,1705009848387,-150.0,0.00044202,2]
[311275507,1705009848396,-182.6,0.00044202,2]
[311275509,1705009848405,-150.0,0.00044202,2]
[311275511,1705009848414,-407.88,0.00044202,2]
[311275513,1705009848423,-407.88,0.00044202,2]
[311275515,1705009848432,-150.0,0.00044202,2]
[311275517,1705009848441,-293.84,0.00044202,2]
[311275519,1705009848450,-314.07,0.00044202,2]
[311275521,1705009848459,-150.0,0.00044202,2]
[311275523,1705009848469,-150.0,0.00044202,2]
[311275525,1705009848478,-407.88,0.00044202,2]
[311275527,1705009848487,-150.0,0.00044202,2]
[311275528,1705009848496,-150.0,0.00044202,2]
[311275530,1705009848505,-293.84,0.00044202,2]
[311275532,1705009848514,-314.07,0.00044202,2]
[311275534,1705009848526,-150.0,0.00044202,2]
[311275537,1705009848537,-407.88,0.00044202,2]
[311275539,1705009848546,-150.0,0.00044202,2]
[311275541,1705009848556,-293.84,0.00044202,2]
[311275542,1705009848565,-177.65,0.00044202,2]
[311275544,1705009848575,-314.07,0.00044202,2]
[311275546,1705009848584,-150.0,0.00044202,2]
[311275548,1705009848593,-150.0,0.00044202,2]
[311275550,1705009848603,-150.0,0.00044202,2]
[311275552,1705009848612,-407.88,0.00044202,2]
[311275554,1705009848622,-314.07,0.00044202,2]
[311275556,1705009848632,-150.0,0.00044202,2]
[311275558,1705009848643,-417.71,0.00044202,2]
[311275560,1705009848653,-150.0,0.00044202,2]
[311275562,1705009848661,-302.04,0.00044202,2]
[311275564,1705009848672,-150.0,0.00044202,2]
[311275566,1705009848682,-407.88,0.00044202,2]
[311275568,1705009848691,-150.0,0.00044202,2]
[311275570,1705009848700,-150.0,0.00044202,2]